bitfinex-derivatives/quotes_SOLF0:USTF0_20230103
["timestamp","ask_amount","ask_price","bid_price","bid_amount"]
[1672753638687,16.8,11.924,11.918,50.0]
[1672753639000,16.8,11.924,11.919,5.0]
[1672753639420,16.8,11.924,11.916,5.0]
[1672753639630,16.86708456,11.924,11.919,5.0]
[1672753640473,16.86708456,11.924,11.918,50.0]
[1672753641313,16.86708456,11.924,11.919,5.0]
[1672753641523,16.8,11.93,11.919,5.0]
[1672753641734,16.8,11.93,11.92,48.1565]
[1672753642048,16.8,11.93,11.921,5.0]
[1672753642568,0.07057919,11.93,11.921,21.79484127]
[1672753642783,0.07057919,11.93,11.922,48.1565]
[1672753642994,0.07057919,11.93,11.923,5.0]
[1672753643202,0.07057919,11.93,11.923,53.1565]
[1672753644679,0.07057919,11.93,11.924,16.65]
[1672753644885,16.77,11.936,11.927,50.0]
[1672753645092,16.77,11.936,11.928,5.0]
[1672753645833,16.77,11.936,11.928,5.06072992]
[1672753645834,0.06981131,11.936,11.928,5.06072992]
[1672753646048,0.06981131,11.936,11.928,52.44242992]
[1672753649406,0.06981131,11.936,11.93,5.0]
[1672753649610,0.06981131,11.936,11.932,5.0]
[1672753650033,66.96,11.949,11.933,47.3813]
[1672753650243,16.58,11.941,11.934,5.0]
[1672753653925,16.58,11.941,11.933,47.44934437]
[1672753655187,16.58,11.941,11.934,5.0]
[1672753656342,16.58,11.941,11.933,47.44934437]
[1672753662024,16.44029887,11.941,11.934,5.0]
[1672753664123,16.66,11.941,11.933,47.44934437]
[1672753666751,16.73,11.943,11.937,50.0]
[1672753666954,16.73,11.943,11.938,5.0]
[1672753667592,16.73,11.943,11.937,50.0]
[1672753668011,16.73,11.943,11.938,5.0]
[1672753668642,16.73,11.943,11.936,0.06372034]
[1672753668852,16.58,11.941,11.936,0.06372034]
[1672753669166,16.58,11.941,11.934,5.07068499]
[1672753670425,16.58,11.941,11.934,0.07068499]
[1672753671790,16.73,11.943,11.937,50.0]
[1672753672105,16.73,11.943,11.938,5.0]
[1672753672316,16.73,11.943,11.936,0.06718858]
[1672753672635,16.73,11.94,11.936,0.06718858]
[1672753674844,16.65961255,11.94,11.936,0.06718858]
[1672753675894,16.73,11.937,11.93,52.9781]
[1672753676208,16.73,11.937,11.93,47.9781]
[1672753676628,16.73,11.935,11.927,50.0]
[1672753677047,16.79250688,11.935,11.927,50.06929705]
[1672753678947,16.71250688,11.935,11.927,50.06929705]
[1672753680307,16.71250688,11.935,11.927,0.06929705]
[1672753681358,16.71250688,11.935,11.927,50.06929705]
[1672753682307,16.65,11.933,11.927,50.06929705]
[1672753684928,16.58,11.934,11.927,50.06929705]
[1672753688191,16.40890941,11.934,11.928,5.0]
[1672753688819,16.40890941,11.934,11.927,50.06929705]
[1672753693130,16.40890941,11.934,11.928,5.0]
[1672753696382,16.40890941,11.934,11.927,50.06929705]
[1672753700698,16.17778091,11.934,11.928,5.0]
[1672753701750,0.06250688,11.935,11.928,5.0]
[1672753701962,0.06250688,11.935,11.929,46.7105]
[1672753702170,0.06250688,11.935,11.93,5.0]
[1672753706163,0.06250688,11.935,11.929,46.7105]
[1672753707111,0.06250688,11.935,11.93,5.0]
[1672753714669,16.71,11.941,11.935,0.15218616]
[1672753716036,16.67,11.942,11.936,50.0]
[1672753716249,16.74,11.945,11.936,50.0]
[1672753716562,16.74,11.945,11.937,5.0]
[1672753721289,16.74,11.945,11.936,99.50106435]
[1672753722132,16.74,11.945,11.936,49.50106435]
[1672753723182,16.73,11.943,11.936,49.50106435]
[1672753723818,16.73,11.943,11.936,99.50106435]
[1672753724029,16.73,11.943,11.937,5.0]
[1672753724553,16.73,11.943,11.936,104.50106435]
[1672753725712,16.73,11.943,11.937,5.0]
[1672753726979,16.73,11.943,11.936,50.06726435]
[1672753728342,16.73,11.943,11.936,0.06726435]
[1672753728552,16.73,11.943,11.936,50.06726435]
[1672753729186,16.60163978,11.943,11.937,5.0]
[1672753733594,16.60163978,11.943,11.936,0.06726435]
[1672753733807,16.68,11.941,11.936,0.06726435]
[1672753741898,16.71,11.944,11.936,50.06726435]
[1672753742422,16.71,11.944,11.936,0.06726435]
[1672753742842,16.71,11.944,11.936,50.06726435]
[1672753743050,16.67,11.947,11.936,0.06726435]
[1672753743255,16.53729074,11.947,11.937,5.0]
[1672753750406,16.53729074,11.947,11.936,103.61186435]
[1672753750724,16.53729074,11.947,11.936,53.61186435]
[1672753751039,16.53729074,11.947,11.936,103.61186435]
[1672753752296,16.53729074,11.947,11.936,53.61186435]
[1672753752507,16.53729074,11.947,11.936,103.61186435]
[1672753753559,16.74,11.944,11.936,50.06726435]
[1672753753769,16.61,11.942,11.936,50.07028379]
[1672753754291,16.61,11.942,11.936,0.07028379]
[1672753754605,16.61,11.942,11.936,50.07028379]
[1672753755446,16.61,11.942,11.936,0.07028379]
[1672753755657,16.74,11.939,11.936,0.07028379]
[1672753755975,16.68,11.938,11.935,0.15218616]
[1672753762495,16.68,11.938,11.933,0.06866182]
[1672753766488,16.72,11.942,11.938,0.22320296]
[1672753766802,16.71,11.945,11.938,0.22320296]
[1672753771637,16.53838389,11.945,11.938,0.22320296]
[1672753780884,16.72,11.949,11.938,0.22320296]
[1672753781095,16.72,11.949,11.939,0.0696938]
[1672753782563,16.72,11.949,11.938,53.91730296]
[1672753782564,0.08847054,11.939,11.938,53.91730296]
[1672753782878,16.72,11.949,11.939,5.0]
[1672753783617,0.06185058,11.948,11.94,0.06555139]
[1672753784564,16.68,11.947,11.94,0.06555139]
[1672753796640,16.57533128,11.947,11.94,0.06555139]
[1672753798957,0.06185058,11.948,11.94,0.06555139]
[1672753802110,16.67,11.947,11.94,0.06555139]
[1672753802423,0.06185058,11.948,11.94,0.06555139]
[1672753811671,16.61,11.949,11.948,0.15555991]
[1672753813036,16.67,11.96,11.948,0.15555991]
[1672753813246,16.67,11.96,11.95,0.06602462]
[1672753815247,16.67,11.96,11.955,50.0]
[1672753815455,16.67,11.96,11.956,5.0]
[1672753821656,16.67,11.96,11.956,4.89595084]
[1672753821973,16.67,11.96,11.955,50.0]
[1672753823018,16.67,11.96,11.953,0.06596784]
[1672753823336,16.71,11.958,11.953,0.06596784]
[1672753823548,16.71,11.958,11.951,0.06919011]
[1672753832056,50.0,11.967,11.951,0.06919011]
[1672753832057,16.61,11.955,11.951,0.06919011]
[1672753832268,16.61,11.955,11.949,0.06822088]
[1672753832900,16.74,11.957,11.949,0.06822088]
[1672753833215,16.74,11.957,11.949,0.06191173]
[1672753834369,16.71,11.955,11.949,0.06191173]
[1672753834580,16.71,11.955,11.948,0.22227936]
[1672753834789,16.62091951,11.955,11.948,0.22227936]
[1672753835731,16.62091951,11.955,11.948,0.02080226]
[1672753845928,0.06577979,11.956,11.948,0.02080226]
[1672753847927,16.74,11.96,11.956,0.15622304]
[1672753848342,16.73,11.958,11.956,0.15622304]
[1672753849293,16.73,11.958,11.956,2.304e-05]
[1672753849504,16.73,11.958,11.953,0.06411527]
[1672753850766,16.71,11.961,11.954,50.0]
[1672753851080,16.71,11.961,11.955,5.0]
[1672753854441,16.71,11.961,11.954,50.0]
[1672753854857,46.5749,11.968,11.953,0.06411527]
[1672753854858,16.68,11.958,11.953,0.06411527]
[1672753855179,16.68,11.958,11.951,0.06526982]
[1672753856333,16.72,11.961,11.954,50.0]
[1672753856542,16.72,11.961,11.955,5.0]
[1672753859277,16.72,11.961,11.954,55.0]
[1672753860321,16.72,11.961,11.954,5.0]
[1672753860527,16.72,11.961,11.954,55.0]
[1672753860848,16.74,11.963,11.954,55.0]
[1672753861060,16.74,11.963,11.954,55.06063014]
[1672753861272,16.74,11.963,11.954,5.06063014]
[1672753861477,16.74,11.963,11.954,55.06063014]
[1672753863683,16.68,11.965,11.954,55.06063014]
[1672753863897,16.68,11.965,11.955,0.06806223]
[1672753864318,16.44402477,11.965,11.955,0.06806223]
[1672753867373,16.72,11.967,11.955,0.06806223]
[1672753867686,16.72,11.967,11.957,0.06365632]
[1672753867891,16.72,11.967,11.957,5.06365632]
[1672753877984,16.58295206,11.967,11.957,5.06365632]
[1672753881558,16.74,11.971,11.963,50.0]
[1672753881761,16.74,11.971,11.964,5.0]
[1672753882712,16.74,11.971,11.963,0.07055375]
[1672753882922,16.71,11.969,11.963,0.07055375]
[1672753889438,16.74,11.975,11.963,50.07055375]
[1672753889648,16.71,11.977,11.965,0.06900465]
[1672753889859,16.71,11.977,11.967,0.06639275]
[1672753894797,16.74,11.983,11.969,16.74]
[1672753895109,16.74,11.983,11.974,5.0]
[1672753895534,16.67,11.986,11.974,5.0]
[1672753895745,16.67,11.986,11.976,0.07035056]
[1672753896164,16.67,11.986,11.976,5.07035056]
[1672753896901,16.67,11.986,11.976,4.90823009]
[1672753897954,0.06451935,11.985,11.977,0.06030899]
[1672753898266,16.74,11.983,11.977,0.06030899]
[1672753903940,16.6,11.981,11.977,0.06030899]
[1672753904573,0.06451935,11.985,11.977,8.99e-06]
[1672753904783,48.8377,11.984,11.977,8.99e-06]
[1672753904993,16.62,11.978,11.963,103.9087]
[1672753905203,16.52,11.971,11.964,52.734]
[1672753905415,16.52,11.971,11.964,5.0]
[1672753905729,16.52,11.971,11.965,5.0]
[1672753908360,16.52,11.971,11.964,5.06881165]
[1672753910559,1.1,11.983,11.97,50.0]
[1672753910773,16.53,11.981,11.973,5.0]
[1672753911720,16.5908109,11.981,11.973,5.06701872]
[1672753913716,16.57,11.978,11.973,0.06701872]
[1672753914769,16.6,11.98,11.973,0.06701872]
[1672753915084,16.6,11.98,11.973,5.06701872]
[1672753916233,66.45,12.012,11.98,66.48]
[1672753916449,50.0,12.014,11.982,50.0]
[1672753916661,45.8633,12.022,11.983,62.59]
[1672753916870,50.0,12.014,11.992,50.0]
[1672753917075,45.8633,12.021,11.992,50.0]
[1672753917397,16.62,12.022,12.002,0.06498647]
[1672753917601,50.0,12.024,12.008,0.07125778]
[1672753918029,50.0,12.015,12.008,0.07125778]
[1672753918237,16.7,12.033,12.008,0.07125778]
[1672753918447,50.0,12.044,12.027,16.58]
[1672753918663,31.7207428,12.044,12.023,49.78]
[1672753918872,311.85200807,12.096,12.022,50.0]
[1672753919078,575.0,12.104,12.024,5.0]
[1672753919294,575.0,12.104,12.032,50.0]
[1672753919295,16.6,12.081,12.032,50.0]
[1672753919503,20.24015204,12.098,12.064,16.79]
[1672753919707,106.68106428,12.098,12.066,16.58]
[1672753920028,106.68106428,12.098,12.078,0.06485464]
[1672753920238,303.02000362,12.127,12.033,50.0272]
[1672753920549,303.02000362,12.127,12.011,50.0]
[1672753920550,16.6,12.034,12.018,16.58]
[1672753920765,16.62,12.026,12.004,111.919]
[1672753920970,66.48,12.033,12.002,62.49]
[1672753921287,0.06040981,12.018,12.009,0.06092944]
[1672753921496,66.57,12.01,11.951,50.0]
[1672753921809,16.57,11.991,11.975,3.0606063]
[1672753922025,16.67,12.002,11.975,3.0606063]
[1672753922236,16.78,12.012,11.981,50.0]
[1672753922544,0.06223291,12.001,11.992,0.06909767]
[1672753922760,16.61,11.994,11.992,0.06143541]
[1672753923077,16.62,11.993,11.982,3.0606063]
[1672753923278,16.57,11.991,11.985,3.0606063]
[1672753923494,16.62,11.986,11.964,67.69]
[1672753923804,66.49,11.991,11.979,3.0613457]
[1672753923805,50.0,11.98,11.979,3.0613457]
[1672753924019,16.62,11.981,11.961,5.0]
[1672753924020,0.06606212,11.976,11.968,0.06671662]
[1672753924335,0.06690625,11.976,11.968,3.12979505]
[1672753924546,16.62,11.995,11.975,16.45]
[1672753924751,18.01,12.009,11.976,67.63]
[1672753924957,16.53,12.006,11.993,16.49]
[1672753925175,50.0,12.011,11.994,5.0]
[1672753925596,16.57,12.003,11.998,0.06037623]
[1672753925908,0.06607142,12.007,11.998,0.06037623]
[1672753927167,12.54,12.003,11.995,3.06307843]
[1672753927376,24.43,12.009,11.993,3.06307843]
[1672753927585,50.0,12.001,11.983,5.0]
[1672753927801,12.44,11.998,11.986,8.05966159]
[1672753928215,0.06898176,11.996,11.988,0.06256525]
[1672753928425,0.06739228,11.996,11.988,12.50643823]
[1672753928638,12.44,12.01,11.991,12.54]
[1672753928846,12.44,12.01,11.992,5.0]
[1672753929062,12.44,12.01,11.992,8.05966159]
[1672753929479,50.0,12.011,11.992,3.05966159]
[1672753929687,12.54,12.004,11.997,0.06586636]
[1672753929902,12.54,12.004,11.996,0.06186987]
[1672753930112,12.54,12.004,11.989,4.78819813]
[1672753930528,12.44,12.01,11.991,12.54]
[1672753930744,12.44,12.01,11.992,5.0]
[1672753931058,0.06379021,12.005,11.997,0.06634637]
[1672753931264,0.07102928,12.005,11.999,5.0]
[1672753931472,12.54,12.017,11.999,5.0]
[1672753931891,12.54,12.017,12.0,3.05797104]
[1672753932320,0.07007462,12.013,12.004,0.07035423]
[1672753932526,0.06671709,12.013,12.004,0.07120451]
[1672753933582,12.54,12.005,11.992,5.0]
[1672753933787,12.54,12.005,11.989,1.17728643]
[1672753934006,12.54,12.005,11.984,17.44]
[1672753934007,12.54,11.998,11.985,3.33166625]
[1672753934212,12.54,11.995,11.981,3.03957253]
[1672753934528,0.06869644,11.992,11.984,0.06184068]
[1672753934947,12.42,11.992,11.973,12.54]
[1672753935157,12.42,11.992,11.974,5.0]
[1672753935473,1393.83445086,12.088,11.974,5.0]
[1672753935474,12.43,12.031,11.991,50.0]
[1672753935786,50.0,12.012,11.982,50.0]
[1672753936000,0.06392084,12.001,11.993,0.06932682]
[1672753936207,0.06390182,12.001,11.993,0.06392593]
[1672753936523,12.41,11.997,11.983,5.0]
[1672753936935,50.0,12.003,11.972,50.0]
[1672753936936,12.54,11.994,11.973,17.49]
[1672753937356,0.06163882,11.988,11.98,0.06473781]
[1672753937577,0.06693955,11.988,11.98,0.06706859]
[1672753940413,0.06693955,11.988,11.982,50.0]
[1672753940721,12.42,11.987,11.975,57.62207078]
[1672753940929,12.54,11.984,11.983,3.06053702]
[1672753941144,12.54,11.987,11.976,4.72261404]
[1672753941355,125.35,12.01,11.977,3.06040878]
[1672753941356,62.45,12.009,11.977,3.06040878]
[1672753941567,0.0667446,11.997,11.989,0.06759911]
[1672753941778,0.06800436,11.997,11.989,0.06373326]
[1672753942617,0.06800436,11.997,11.989,12.55373326]
[1672753943035,0.06800436,11.997,11.99,5.0]
[1672753943246,0.06800436,11.997,11.99,8.06040878]
[1672753943661,0.06800436,11.997,11.991,3.06040878]
[1672753944297,0.06800436,11.997,11.992,5.0]
[1672753944509,0.00800436,11.997,11.992,67.47]
[1672753944716,0.00800436,11.997,11.993,3.06040878]
[1672753944926,0.00800436,11.997,11.994,5.0]
[1672753945141,12.54,12.011,11.994,5.0]
[1672753945344,12.54,12.011,11.998,0.06157296]
[1672753945662,0.06378928,12.007,11.998,0.06157296]
[1672753949240,0.06378928,12.007,11.993,5.0]
[1672753949448,12.42,12.007,11.992,5.0]
[1672753949651,12.42,12.007,11.994,3.05834579]
[1672753950178,12.42,12.007,11.993,3.05834579]
[1672753950388,55.0,12.013,11.996,0.06223087]
[1672753950389,12.50698531,12.004,11.996,0.06223087]
[1672753950598,12.44,12.004,11.99,4.78881876]
[1672753951019,12.44,12.004,11.991,3.05834418]
[1672753951754,0.06956603,12.002,11.993,0.06698194]
[1672753953539,12.41,12.001,11.993,0.06698194]
[1672753955117,0.06956603,12.002,11.993,0.06698194]
[1672753955955,0.06956603,12.002,11.993,3.12532612]
[1672753956166,0.06956603,12.002,11.994,5.0]
[1672753956798,0.06956603,12.002,11.995,3.05834418]
[1672753957954,0.06956603,12.002,11.994,5.0]
[1672753957955,0.06956603,12.002,11.991,1.45449195]
[1672753958583,0.06956603,12.002,11.992,3.05804291]
[1672753958903,0.06956603,12.002,11.993,0.06137426]
[1672753960895,0.06956603,12.002,11.993,5.06137426]
[1672753961311,0.06956603,12.002,11.994,3.05804291]
[1672753961526,0.06956603,12.002,11.995,5.0]
[1672753962052,0.06956603,12.002,11.996,3.05804291]
[1672753963000,12.54,12.013,11.997,5.0]
[1672753963310,59.15,12.03,12.002,50.0]
[1672753963524,12.54,12.018,12.002,50.0]
[1672753963842,12.45,12.022,12.003,20.59804291]
[1672753964047,0.06107647,12.017,12.008,0.06913722]
[1672753964363,0.06107647,12.017,12.008,0.06492228]
[1672753966252,12.54,12.012,11.999,5.0]
[1672753966470,12.54,12.012,12.0,5.0]
[1672753966679,12.54,12.012,12.0,8.05602797]
[1672753967102,12.54,12.012,12.001,3.05602797]
[1672753967309,0.06933161,12.011,12.002,0.06524919]
[1672753969725,12.42,12.009,12.002,0.06524919]
[1672753970566,12.54,12.003,11.985,12.47]
[1672753970776,12.54,12.003,11.983,5.0]
[1672753971618,0.06176643,11.997,11.989,0.06543088]
[1672753971924,0.06176643,11.997,11.984,3.05795687]
[1672753972142,0.06176643,11.997,11.985,5.0]
[1672753972351,0.06176643,11.997,11.986,3.12863156]
[1672753972876,0.06163488,11.996,11.986,3.12863156]
[1672753973082,12.54,12.003,11.987,0.06873219]
[1672753973298,12.54,12.003,11.991,0.06693469]
[1672753973507,0.06925634,11.999,11.991,0.06693469]
[1672753976977,12.60925634,11.999,11.991,0.06693469]
[1672753978231,0.06925634,11.999,11.991,0.06693469]
[1672753979917,0.06925634,11.999,11.993,5.0]
[1672753980545,0.06925634,11.999,11.994,3.05795687]
[1672753981387,0.06925634,11.999,11.991,0.06693469]
[1672753988847,0.06925634,11.999,11.992,50.0]
[1672753989058,0.06925634,11.999,11.993,5.0]
[1672753989580,0.06925634,11.999,11.994,3.05811505]
[1672753991998,0.06925634,11.999,11.991,0.06693469]
[1672753992314,0.06925634,11.999,11.993,3.05820541]
[1672753992627,0.06925634,11.999,11.991,3.1251401]
[1672753994833,0.06925634,11.999,11.992,50.0]
[1672753995046,0.06925634,11.999,11.993,5.0]
[1672753995567,0.06925634,11.999,11.994,3.05820541]
[1672753996723,0.06925634,11.999,11.991,3.1251401]
[1672753997665,0.06925634,11.999,11.986,46.9745]
[1672753997666,12.54,11.998,11.983,5.0]
[1672753998189,12.54,11.998,11.986,3.05839365]
[1672753998824,0.07116388,11.996,11.988,0.06475116]
[1672753999978,12.54,11.989,11.975,5.0]
[1672754000191,12.54,11.983,11.973,4.99248873]
[1672754000400,12.54,11.983,11.976,3.06043131]
[1672754000823,12.42,11.98,11.974,3.06043131]
[1672754001137,0.06308141,11.981,11.974,3.06043131]
[1672754001348,0.06223519,11.982,11.975,5.0]
[1672754001550,12.48850141,11.983,11.975,5.0]
[1672754001761,12.49079605,11.983,11.976,3.06043131]
[1672754002184,12.49079605,11.983,11.975,0.07013998]
[1672754003242,12.44,11.98,11.975,0.07013998]
[1672754003655,0.07079605,11.983,11.975,0.07013998]
[1672754005759,12.54,11.98,11.975,0.07013998]
[1672754006076,12.45,11.977,11.965,5.0]
[1672754006496,12.45,11.977,11.964,5.0]
[1672754007023,62.56,11.988,11.966,0.06839916]
[1672754007024,12.41,11.973,11.966,0.06839916]
[1672754007235,12.41,11.973,11.965,0.07137543]
[1672754007446,12.47700541,11.973,11.965,0.06098506]
[1672754007971,0.06700541,11.973,11.965,0.06098506]
[1672754008391,12.45,11.971,11.965,0.06098506]
[1672754010385,12.54,11.967,11.956,5.0]
[1672754011434,0.06306375,11.966,11.957,0.07003291]
[1672754014278,12.44,11.978,11.964,5.0]
[1672754014911,12.42,11.975,11.959,5.0]
[1672754015223,12.42,11.971,11.959,5.0]
[1672754015541,12.48338054,11.971,11.963,0.06274043]
[1672754017422,0.06338054,11.971,11.963,0.06274043]
[1672754018267,0.06338054,11.971,11.963,50.06274043]
[1672754018585,0.06338054,11.971,11.964,5.0]
[1672754026775,8.054e-05,11.971,11.964,5.0]
[1672754027300,12.54,11.981,11.964,5.0]
[1672754028138,0.06518126,11.977,11.968,0.07069077]
[1672754032451,12.45,11.99,11.973,50.0]
[1672754032661,12.45,11.99,11.974,5.0]
[1672754033391,0.06612994,11.986,11.978,0.06308492]
[1672754037491,0.06612994,11.986,11.983,50.0]
[1672754037702,0.06869451,11.989,11.984,5.0]
[1672754038019,0.06164821,11.991,11.984,5.0]
[1672754038233,12.54,11.998,11.984,5.0]
[1672754038548,0.06979106,11.995,11.987,0.06691358]
[1672754041694,12.42,11.991,11.978,5.0]
[1672754042749,0.0662779,11.989,11.98,0.06401922]
[1672754043696,0.0662779,11.989,11.982,50.0]
[1672754044011,0.0662779,11.989,11.983,5.0]
[1672754049367,7.79e-05,11.989,11.983,5.0]
[1672754051048,7.79e-05,11.989,11.986,12.54]
[1672754051254,0.06013016,11.992,11.989,5.0]
[1672754051468,12.54,12.008,11.991,50.0]
[1672754051675,12.54,12.008,11.992,5.0]
[1672754052624,0.07117094,12.004,11.996,0.06977693]
[1672754054726,12.42,12.001,11.996,0.06977693]
[1672754055256,12.61117094,12.004,11.996,0.06977693]
[1672754055671,0.07117094,12.004,11.996,0.06977693]
[1672754056722,0.07117094,12.004,11.996,5.06977693]
[1672754056928,16.72,12.006,11.996,5.0]
[1672754057247,16.72,12.006,11.997,5.0]
[1672754058092,16.72,12.006,11.997,5.06388102]
[1672754058093,16.78176855,12.006,11.997,5.06388102]
[1672754061556,16.72,11.998,11.984,16.66]
[1672754061763,16.56,11.996,11.984,16.66]
[1672754061974,16.64,11.997,11.986,16.58]
[1672754062185,16.64,11.997,11.991,50.0]
[1672754062396,16.67,12.003,11.991,50.0]
[1672754062603,0.06743942,12.001,11.993,0.06736156]
[1672754064814,16.72,12.0,11.993,0.06736156]
[1672754065129,16.6,11.998,11.987,5.0]
[1672754065860,16.6,11.998,11.985,16.65]
[1672754066075,16.67,11.989,11.975,16.72]
[1672754066384,16.67,11.989,11.981,50.0]
[1672754066599,16.67,11.991,11.982,5.0]
[1672754066810,16.72,11.995,11.982,5.0]
[1672754067020,0.06830149,11.993,11.984,0.06664307]
[1672754069330,16.67,11.988,11.98,50.0]
[1672754069543,16.67,11.988,11.976,5.0]
[1672754069752,16.72,11.99,11.977,16.72]
[1672754069961,66.88,12.0,11.976,5.0]
[1672754069962,16.67,11.993,11.98,66.58]
[1672754070171,16.67,11.993,11.981,5.0]
[1672754070383,0.06771239,11.991,11.983,0.06007192]
[1672754071119,0.06771239,11.991,11.983,16.73007192]
[1672754071330,0.06771239,11.991,11.984,5.0]
[1672754072382,0.06771239,11.991,11.983,0.06007192]
[1672754072587,16.72,11.988,11.983,0.06007192]
[1672754072802,16.72,11.988,11.976,16.63]
[1672754073009,16.72,11.988,11.978,5.0]
[1672754073430,16.72,11.986,11.978,5.0]
[1672754073852,16.7869903,11.986,11.978,5.06926127]
[1672754074265,0.0669903,11.986,11.98,50.0]
[1672754074482,0.0669903,11.986,11.981,5.0]
[1672754075637,16.7869903,11.986,11.978,0.06926127]
[1672754079098,16.6,11.984,11.978,0.06926127]
[1672754079313,16.72,11.98,11.972,45.2617]
[1672754079524,16.72,11.98,11.97,50.0]
[1672754080574,16.78201095,11.98,11.971,5.07087113]
[1672754081522,16.72,11.977,11.971,0.07087113]
[1672754081734,16.72,11.974,11.965,5.0]
[1672754082573,16.72,11.976,11.965,5.0]
[1672754082785,0.06629757,11.975,11.966,0.0609766]
[1672754083308,16.56,11.974,11.966,0.0609766]
[1672754083518,0.06629757,11.975,11.966,0.0609766]
[1672754083724,16.56,11.971,11.966,0.0609766]
[1672754084572,16.72,11.968,11.961,5.0]
[1672754085298,16.7,11.974,11.961,21.58]
[1672754085719,16.72,11.969,11.963,0.06688479]
[1672754085933,16.72,11.969,11.962,5.0651746]
[1672754086354,0.06954375,11.97,11.962,5.0651746]
[1672754087829,0.06954375,11.97,11.963,49.9205]
[1672754088144,0.06954375,11.97,11.964,5.0]
[1672754090561,0.06954375,11.97,11.963,5.0]
[1672754091082,0.06954375,11.97,11.962,5.0651746]
[1672754091711,16.56,11.969,11.962,0.0651746]
[1672754091928,16.64,11.965,11.962,0.0651746]
[1672754092134,16.64,11.965,11.959,0.06771538]
[1672754092347,16.64,11.965,11.958,0.06403025]
[1672754093399,0.07099696,11.966,11.959,50.0]
[1672754093610,0.07099696,11.966,11.961,5.0]
[1672754094449,16.72,11.973,11.961,5.0]
[1672754095395,0.06942179,11.971,11.963,0.07099445]
[1672754102641,16.72,11.977,11.969,50.0]
[1672754102858,16.6,11.98,11.97,5.0]
[1672754103063,16.72,11.982,11.971,16.65]
[1672754103277,16.72,11.982,11.972,5.0]
[1672754103691,0.06935637,11.981,11.973,0.06210269]
[1672754103905,0.06266943,11.981,11.972,21.59]
[1672754104111,0.06266943,11.981,11.973,0.06228412]
[1672754106848,16.72,11.985,11.974,5.0]
[1672754107055,16.72,11.988,11.978,50.0]
[1672754107268,16.72,11.988,11.979,5.0]
[1672754107900,16.78396504,11.988,11.979,5.07089102]
[1672754110312,0.06396504,11.988,11.98,16.59]
[1672754110526,16.67,11.995,11.981,5.0]
[1672754111152,16.7,11.993,11.981,5.0]
[1672754111684,0.06159406,11.991,11.983,0.07122755]
[1672754113571,16.64,11.998,11.988,50.0]
[1672754113784,16.64,11.998,11.989,5.0]
[1672754114625,16.70661182,11.998,11.989,5.06623601]
[1672754114938,0.06661182,11.998,11.989,21.69623601]
[1672754117774,0.06661182,11.998,11.989,5.06623601]
[1672754124080,16.78661182,11.998,11.989,5.06623601]
[1672754124293,0.06661182,11.998,11.989,21.71623601]
[1672754124494,16.6,11.997,11.989,5.06623601]
[1672754125026,16.64,11.991,11.981,575.0]
[1672754125232,16.56,11.987,11.976,16.63]
[1672754125446,16.56,11.987,11.978,98.4374]
[1672754125649,16.56,11.987,11.978,48.4374]
[1672754125860,16.56,11.987,11.979,5.0]
[1672754126180,16.62484685,11.987,11.979,5.0]
[1672754130385,0.06484685,11.987,11.979,5.0]
[1672754132904,0.06484685,11.987,11.978,0.06443917]
[1672754133745,16.6,11.985,11.978,0.06443917]
[1672754134896,16.7,11.979,11.971,5.0]